{"text_format":"1","workbook":"xlsx","n_sheets":1,"sheets":["Tabelle1"],"not_rendered":{"charts":0,"images":0,"macros":1,"external_links":0,"defined_names":70,"comments":1,"pivot_tables":0},"unopened":[],"bounds":{"document_bytes":16777216,"sheet_cells":100000,"rows_first":2000,"rows_last":500,"rows_between":2000,"halvings":0,"cell_chars":16384,"cell_head_chars":4096},"cells_cut":0,"cells_raw":0,"read":"whole","date_system":"1900"}

{"sheet":"Tabelle1","index":0,"n_rows":54,"n_cols":69,"rows_kept":54,"cut":false,"hidden":false,"merged":[]}
["OZ","Typ","Beschreibung","Langtext","Menge","Einheit","EP [EUR]","GP [EUR]","TB Anzahl","TB1 Ansprache","TB1 Bietertext","TB1 Absprache","TB2 Ansprache","TB2 Bietertext","TB2 Absprache","TB3 Ansprache","TB3 Bietertext","TB3 Absprache","TB4 Ansprache","TB4 Bietertext","TB4 Absprache","TB5 Ansprache","TB5 Bietertext","TB5 Absprache","TB6 Ansprache","TB6 Bietertext","TB6 Absprache","TB7 Ansprache","TB7 Bietertext","TB7 Absprache","TB8 Ansprache","TB8 Bietertext","TB8 Absprache","TB9 Ansprache","TB9 Bietertext","TB9 Absprache","TB10 Ansprache","TB10 Bietertext","TB10 Absprache","TB11 Ansprache","TB11 Bietertext","TB11 Absprache","TB12 Ansprache","TB12 Bietertext","TB12 Absprache","TB13 Ansprache","TB13 Bietertext","TB13 Absprache","TB14 Ansprache","TB14 Bietertext","TB14 Absprache","TB15 Ansprache","TB15 Bietertext","TB15 Absprache","TB16 Ansprache","TB16 Bietertext","TB16 Absprache","TB17 Ansprache","TB17 Bietertext","TB17 Absprache","TB18 Ansprache","TB18 Bietertext","TB18 Absprache","TB19 Ansprache","TB19 Bietertext","TB19 Absprache","TB20 Ansprache","TB20 Bietertext","TB20 Absprache"]
[null,null,"Sportplatzbauarbeiten",null,null,null,null,{"$f":"H4+H51","v":0}]
[null,"I","Vorbemerkungen","Vorbemerkungen\n \nDer Baustellenbereich ist über die Hallostr. 50 und über die Pflegezufahrt Stiftsdamerwald zu erreichen.\nDen Bietern wird empfohlen die Zufahrtsituation vor Angebotsabgabe zu sichten.\n \nBei den nachfolgend ausgeschriebenen Leistungen handelt es sich um Sanierungsmaßnahmen am Kunststoffbelag, \ngießbeschichtet Normtyp D, der vorhandenen Kampfbahn Typ A und der separat gelegenen Weitsprunganlage/ Speerwurfanlage.\n \nEntlang der Laufbahnentwässerungsrinne sind vereinzelte kleinere Sackungen, mutmaßlich durch Auswaschungen im direkten Anschlussbereich an die Kastenrinne festzustellen.\n \nIn der Erstherstellung ist der Asphaltbelag 2-lagig\n(40 mm und 25 mm stark) hergestellt worden.\n \nDas Sanierungskonzept sieht folgende Leistungen vor:\n\n-\tRückbau der Kunststoffbeschichtung in Kleinbereichen\n\tder Laufbahn im Bereich der Schadstellen.\n\n-\tUntersuchung der Asphalttragschichten auf Sackungen\n\tin den Bereichen\n\n-\tRückbau der Asphalttragschicht in Sackungsbereichen,\n\tMindestbreite ca. 40 cm,nachverdichten,\n\n-\tErsatz der fehlenden Stoffe Schottertragschicht durch\n\tKalksteinschotter 0/22 mm oder Beton C 20/25;\n\n-\tHerstellung einer Tragschicht als Untergrund für die\n\tKunststoffbeschichtung, Material wie Splitt-Polyure-\n\tthangemisch;\n\n-\tNeubeschichtung in den Rückbauflächen,\n\tin ca. 10-13 mm Stärke, im gleichen Belag wie\n\tAltbelag, Normtyp D,\n\t(Altbelag: Rekortan M der Firma Polytan);\n\n-\tRetopping der gesamten Kunststoffflächen Kampfbahn, \tSegmente und separater Weitsprunganlage (ca. 1000m²), \tAnlaufbahn der Speerwurfzone (ca. 120m²)\n\n-\tNeulinierung der gesamten Laufbahn einschl. separater\n\tWeitsprunganlage und leichtathletischer Anlagen\n\nDie vorh. Rinnenabdeckung, die Hochsprunganlagen, die Stabhochsprunganlage, sind zurückzubauen und nach Fertigstellung an gleichem Standort wieder aufzubauen.\n\nAusführungsbeginn:\tab 20. Juli 2026\n(letztes Sportevent auf der Anlage)\n\nAusführungdauer: 4 - 6 Wochen\n\nFertigstellung zwingend bis zum 11.09.2026\n\nDie gesamte Kampfbahn ist umlaufend mit einer Barriere eingezäunt. Die Aufstellung von Bauzäunen ist daher nicht erforderlich.\nDen Bietern wird empfohlen die örtlichen Einbauten zu sichten um den Aufwand der Demontage, Umtransport und Wiederaufbau abschätzen zu können."]
["01","1","Sanierungsarbeiten Kunststoffbeläge Laufbahn","Sanierungsarbeiten Kunststoffbeläge Laufbahn",null,null,null,{"$f":"SUM(H6:H17)+SUM(H19:H32)+SUM(H34:H39)+SUM(H41:H50)","v":0}]
["01.01","2","Baustelleneinrichtung",null,null,null,null,{"$f":"SUM(H6:H17)","v":0}]
["01.01.0001"," ","Einrichten und Räumen der Baustelle","Einrichten und Räumen der Baustelle sowie Vorhalten der Baustelleneinrichtung für sämtliche in der Leistungs-\nbeschreibung aufgeführten Leistungen.\nEinschl. An- und Abtransport sämtlicher Spezialmaschinen und Geräte.",1,"psch",null,{"$f":"ROUND(E6*G6,2)","v":0},0]
["01.01.0002"," ","Rinnenabdeckung aufnehmen und lagern","Rinnenabdeckung der Laufbahnrinne aus Kunststoff,\nweiß, getrennt nach Geraden - und Radialelementen auf nehmen und getrennt auf Paletten lagern,\nca. 100 - 500 m transportieren, und im Bereich Vorplatz  lagern.\nDie defekten Rinnenteile sind zur Bestandsaufnahme separat zu lagern und nach Erfassung zu entsorgen.",400,"m",null,0,0]
["01.01.0003"," ","Rinnenabdeckung liefern und einbauen","Rinnenabdeckung, gerade, für offene Kastenrinne,\nwie im Bestand vorhanden, neu liefern und zum Abschluss der Sanierungsmaßnahme einbauen.",20,"St",null,0,0]
["01.01.0004"," ","Leistung wie vor, jedoch Rinnabdeckung","Leistung wie vor, jedoch Rinnenabdeckung, radial, für offene Kastenrinne.",10,"St",null,0,0]
["01.01.0005"," ","Schlitzrinnenabdeckung liefern und einbauen","Schlitzrinnenabdeckung, radial, für geschlossene Schlitzrinne, wie im Bestand vorhanden, neu liefern und einbauen.",10,"St",null,0,0]
["01.01.0006"," ","Offene Kastenrinne reinigen","Offene Kastenrinne auf der gesamten Länge mit geeignetem Gerätschaften von Laub und Feinstoffresten reinigen.\nDas Entsorgungsgut ist aufzunehmen und abzufahren.",230,"m",null,0,0]
["01.01.0007"," ","Vorh. beschädigte Rinnenelemente ausbauen, entsorgen","Vorh. beschädigte Rinnenelemente ausbauen, entsorgen\nund neue Elemente versetzen.\nVorh. beschädigte Rinnenelemente der\nLaufbahnentwässerung, gerade Ausführung,\nKastenrinne oben offen, unter Schonung der\nangrenzenden Rinnenelemente, einschl. Betonbettung\nausbauen, und entsorgen.\nNeue Elemente entsprechend dem alten Rinnensystem\nder Firma ACO / Innotec liefern und fachgerecht auf\nMörtelbett versetzen.\nEinschl. Anarbeitung der nach innen angrenzenden\nRasenfläche.",15,"m",null,0,0]
["01.01.0008"," ","Vorh. beschädigten Einlaufkasten ausbauen"," Vorh. beschädigten Einlaufkasten ausbauen und durch neues Element ersetzen.\nVorh. beschädigten Einlaufkasten des Rinnensystems der\nVorposition, wie vor beschrieben ausbauen und durch ein\nneu zu lieferndes Element ersetzen.\nEinschl. fachgerechtem Anschluss mit allen Formteilen\nan die bestehende Entwässerungsleitung.",3,"St",null,0,0]
["01.01.0009"," ","Kantensteine ausbauen und in gleicher Lage versetzen","Kantensteine 8/20/100, im Zuge der Pflasteranpassung,\neinschl. Mörtelbettung in ca. 5 cm Stärke ausbauen,\nund höhengerecht in gleicher Lage auf neues Mörtelbett versetzen.",10,"m",null,0,0]
["01.01.0010"," ","Vorh. Stabhochsprunganlage aufnehmen, transportieren und lagern","Vorh. Stabhochsprunganlage, im westlichen Segment aufgebaut, bestehend aus Lattenaufnahmegestellen, Abdeckplane, Sprungkissenabdeckung und Sprungkissen, einschl. Auflagerost aufnehmen, ca. 100 m transportieren und im Bereich Umlaufweg fachgerecht lagern.\nNach Abschluss der Arbeiten die Anlage wieder zurück transportieren und fachgerecht aufbauen.",1,"St",null,0,0]
["01.01.0011"," ","Leistung wie vor, jedoch Hochsprungmatte","Leistung wie vor, jedoch Hochsprungmatte, lagernd.\nBestehend aus Abdeckplane, Sprungkissenabdeckung,\nSprungkissen sowie Auflageroste.\nMattenmaß ca. 4,00 x 6,00 m.\nNach Abschluss der Arbeiten die Anlage wieder zurück transportieren und fachgerecht aufbauen.",2,"St",null,0,0]
["01.01.0012"," ","Hochsprungmattenabdeckung aufnehmen, transportieren und lagern","Fahrbare Hochsprungmattenabdeckung aus Aluminium,\nin der Mitte geteilt, große Ausführung, aufnehmen, ca. 100 m transportieren, und im Bereich Umlaufweg lagern.\nDie Abdeckung sollte möglichst zum Schutz der vorh. Hochsprungmattenteile während der Bauphase genutzt werden.\nNach Abschluss der Arbeiten die Anlage wieder zurück transportieren und fachgerecht aufbauen.",1,"St",null,0,0]
["01.02","2","Sanierungsarbeiten Kunststoffbeläge Laufbahn",null,null,null,null,{"$f":"SUM(H19:H32)","v":0}]
["01.02.0001"," ","Kunststoffbelag anschleifen","Kunststoffbelag anschleifen\nAnschleifen der sich in Teilbereichen ablösenden Oberbeschichtung des wasserundurchlässigen Kunststoffbelages im Bereich von Schadstellen nach örtlicher Festlegung zusammen mit der Bauleitung.\nDie Flächen seitlich der Anlaufbahn Weitsprung,\nFarbe grün, sind komplett abzuschleifen.",300,"m2",null,{"$f":"ROUND(E19*G19,2)","v":0},0]
["01.02.0002"," ","Schleifgut abkehren, aufnehmen, abfahren und entsorgen","Schleifgut abkehren, aufnehmen, seitlich bis zum Abtransport geordnet lagern, anschließend abfahren und umweltgerecht entsorgen.",1000,"kg",null,0,0]
["01.02.0003"," ","Kunststoffbelag schneiden und lösen","Kunststoffbelag an den Rändern scharfkantig in einer Breite von ca. 20 cm schneiden und lösen.\nDicke bis 15 mm.\nBereiche: breite Fugen an der Rinne und den Einfassungen, um Einbauten herum, etc.",150,"m",null,0,0]
["01.02.0004"," ","Asphaltbelag reinigen und behandeln","Asphaltbelag ca. 20 cm breit reinigen, mit Polyurethan-Bindemittel behandeln.",150,"m",null,0,0]
["01.02.0005"," ","Kunststoffbasisbelag liefern und herstellen","Kunststoffbasisbelag, gleiches Material wie bereits eingebaut, liefern und in einer Breite von ca. 20 cm fachgerecht herstellen, einschl. aller Materiallieferungen. Dicke bis 15 mm.\nFarbe: schwarz\nMaterial: SBR-PU gebunden",150,"m",null,0,0]
["01.02.0006"," ","Liefern und aufbringen von PU-Spachtelmasse","Liefern und aufbringen von PU-Spachtelmasse als Porenschluss in den Reparaturbereichen der neu eingebauten schwarzen Basisschicht.",150,"m",null,0,0]
["01.02.0007"," ","Kunststoffbelag schneiden und ausbauen","Kunststoffbelag an den Rändern scharfkantig schneiden und ausbauen.\nReparaturfläche kleiner als 1 m².\nDicke bis 15 mm.",20,"St",null,0,0]
["01.02.0008"," ","Asphaltbelag reinigen und behandeln","Asphaltbelag reinigen und mit Polyurethan-Bindemittel behandeln. Reparaturfläche kleiner als 1 m².",20,"St",null,0,0]
["01.02.0009"," ","Kunststoffbasisbelag liefern und herstellen","Kunststoffbasisbelag liefern und fachgerecht einbauen. Reparaturfläche kleiner als 1 m².\nDicke bis 15 mm\nFarbe: schwarz\nMaterial: SBR-PU gebunden",20,"St",null,0,0]
["01.02.0010"," ","Liefern und aufbringen von PU-Spachtelmasse","Liefern und aufbringen von PU-Spachtelmasse als Porenschluss in den Reparaturbereichen der neu eingebauten schwarzen Basisschicht.\nReparaturfläche kleiner als 1 m².",20,"St",null,0,0]
["01.02.0011"," ","Kunststoffbelag schneiden und ausbauen","Kunststoffbelag an den Rändern scharfkantig schneiden und ausbauen.\nReparaturfläche größer als 1 m² z.B. im Bereich\nInnenlaufbahn am westlichem Segment.\nAusführung nach örtlicher Festlegung.\nDicke bis 15 mm.",50,"m2",null,0,0]
["01.02.0012"," ","Asphaltbelag reinigen und behandeln","Asphaltbelag reinigen und mit Polyurethan-Bindemittel behandeln. Reparaturfläche größer als 1 m².",120,"m2",null,0,0]
["01.02.0013"," ","Kunststoffbasisbelag liefern und einbauen","Kunststoffbasisbelag liefern und fachgerecht einbauen. Reparaturfläche ca. größer als 1 m².\nDicke bis 15 mm\nFarbe: schwarz\nMaterial: SBR-Pu gebunden",120,"m2",null,0,0]
["01.02.0014"," ","Liefern und aufbringen von PU-Spachtelmasse","Liefern und aufbringen von PU-Spachtelmasse als Porenschluss in den Reparaturbereichen der neu eingebauten schwarzen Basisschicht.\nReparaturfläche größer als 1 m².",120,"m2",null,0,0]
["01.03","2","Reparatur Sackungen in Asphaltflächen",null,null,null,null,{"$f":"SUM(H34:H39)","v":0}]
["01.03.0001"," ","Schnitt 2-lagige Asphalttragschicht in 6 - 8 cm Stärke","Schnitt 2-lagige Asphalttragschicht in 6 - 8 cm Stärke entlang der Laufbahnrinne in einem Abstand von ca. 40 cm im Bereich von Sackungen schneiden.\nÜberwiegend an den Einlaufkästen Schlitzrinne\nder Innenlaufbahn und innerhalb der Segmente.",100,"m",null,{"$f":"ROUND(E34*G34,2)","v":0},0]
["01.03.0002"," ","Tragschichtmaterial Asphalt aufbrechen und entsorgen","Tragschichtmaterial Asphalt aufbrechen, aufnehmen, laden und fachgerecht entsorgen.\nAbrechnung nach Flächenaufmaß.",100,"m2",null,0,0]
["01.03.0003"," ","Vorhandene Schottertragschicht im Aufbruchbereich der Vorposition nach","Vorhandene Schottertragschicht im Aufbruchbereich der Vorposition mit einem Grabenstampfer nachverdichten.\nEs ist besonders darauf zu achten, dass die Rinnenelemente aus Faserbeton nicht beschädigt werden.",100,"m2",null,0,0]
["01.03.0004"," ","Sackungen im Bereich vorhandener Schotterunterbau mit Kalksteinschotte","Sackungen im Bereich vorhandener Schotterunterbau mit zu lieferndem Kalksteinschotter 0/22 mm in Handarbeit auffüllen und verdichten.\nAbrechnung nach Einbaufläche.",5,"m3",null,0,0]
["01.03.0005"," ","Leistung wie vor, jedoch Verfüllmaterial Beton C 20/25","Leistung wie vor, jedoch Verfüllmaterial Beton C 20/25.\nAbrechnung nach Original-Lieferscheinen.",8,"m3",null,0,0]
["01.03.0006"," ","Splitt-Polyurethan-Gemisch als Asphaltersatz entlang der Entwässerungs","Splitt-Polyurethan-Gemisch liefern und als Asphalt-\nersatz entlang der Entwässerungsrinne in ca. 20 - 40 cm Breite von Hand niveaugerecht in ca. 7 cm Stärke einbauen.",10,"t",null,0,0]
["01.04","2","Retopping Laufbahn, Weitsprunganlage und Anlauf Speerwurf",null,null,null,null,{"$f":"SUM(H41:H50)","v":0}]
["01.04.0001"," ","Anschleifen Linienmarkierung","Anschleifen der bestehenden, überholten Linienmarkierung.",4400,"m",null,{"$f":"ROUND(E41*G41,2)","v":0},0]
["01.04.0002"," ","Intensivreinigung von Kunststoffsportflächen","Intensivreinigung von Kunststoffsportflächen:\nAnwendungsbereich: Kunststoffbeläge im\nAußenbereich nach DIN EN 14877, Normtypen: A-F. Zertifizierung nach RAL GZ 943/4\nVerfahren: Hochdrucknassreinigung/Dreh-Wirbelverfahren ohne chem. Mittel\nAnforderung: Reinigung porentief\nGerät: mit Drehdüsenrotoren, Druck bis 295 bar Wasserbereitstellung: bauseits, C-Anschluss\neinschl. fachgerechter Entsorgung des Reinigungsgutes.",9172,"m2",null,0,0]
["01.04.0003"," ","Kantensteine schützen","Umlaufende Kantensteine und Rinnen mit Klebeband vor Verschmutzung durch Kunststoffmasse schützen, einschl. Entfernen des Bandes nach dem Kunststoffeinbau.",1,"psch",null,0,0]
["01.04.0004"," ","Liefern und aufbringen von PU-Spachtelmasse","Liefern und aufbringen von PU-Spachtelmasse für den Porenschluss, zum Ausgleich von Unebenheiten und zur Erlangung einer besseren Ebenflächigkeit.",4000,"kg",null,0,0]
["01.04.0005"," ","Haftbrücke aufbringen","Haftbrücke aufbringen auf gereinigten Untergrund liefern und fachgerecht einbauen.\nAuftragsgewicht 200g/m²",1850,"kg",null,0,0]
["01.04.0006"," ","Retopping","Retopping für vorhandenen Kunststoffbelag, gießbeschichtet, wasserundurchlässig, in einer Dicke von ca. 3 mm, Farbe ziegelrot, gemäß RAL-GZ 943/2 o. glw., liefern und fachgerecht auf vorbehandeltem Altbelag einbauen. \nAufbau wie folgt:\n1.\tBasisschicht: \tVorhandener Altbelag \n\t\t\t\t(DIN EN 14877-Belag Normtyp D)\n\n2.\tOberschicht:\tPolyurethan gegossen und \n\t\t\t\tEPDM-Granulat eingestreut, \n\t\t\t\tDicke: 3 mm\n\t\t\t\tFarbe: ziegelrot\n\n3.\tOberfläche:\tGranulat mit sichtbarer Spitze\n\t\t\t\teingestreut.\n \nAngebotenes Produkt:\n \n. . . . . . . . . . . . . . . . . . . . . . . . . . . .\n(vom Bieter einzutragen)\n'.........' \u000b \nHersteller:\n \n. . . . . . . . . . . . . . . . . . . . . . . . . . . .\n(vom Bieter einzutragen)\n'.........' \u000b \nEinbau durch:\n \n. . . . . . . . . . . . . . . . . . . . . . . . . . . .\n(vom Bieter einzutragen)\n'.........' \u000b \n1. Labor/Eignungsprüfung\n    nach DIN EN 1177:2018\n \nName Prüfinstitut:\n \n. . . . . . . . . . . . . . . . . . . . . . . . . . . .\n(vom Bieter einzutragen)\n'.........' \u000b \nDIN EN ISO/IEC 17025-Registriernummer:\n \n. . . . . . . . . . . . . . . . . . . . . . . . . . . .\n(vom Bieter einzutragen)\n'.........' \u000b \nAusstellungsdatum:\n \n. . . . . . . . . . . . . . . . . . . . . . . . . . . .\n(vom Bieter einzutragen)\n'.........' \u000b \nPrüfzeugnis-Nr.:\n \n. . . . . . . . . . . . . . . . . . . . . . . . . . . .\n(vom Bieter einzutragen)\n'.........' \u000b \n \n2. Eignungsprüfung\n    nach DIN 18035-6:2014\n \nName Prüfinstitut:\n \n. . . . . . . . . . . . . . . . . . . . . . . . . . . .\n(vom Bieter einzutragen)\n'.........' \u000b \nDIN EN ISO/IEC 17025-Registriernummer:\n \n. . . . . . . . . . . . . . . . . . . . . . . . . . . .\n(vom Bieter einzutragen)\n'.........' \u000b \nAusstellungsdatum:\n \n. . . . . . . . . . . . . . . . . . . . . . . . . . . .\n(vom Bieter einzutragen)\n'.........' \u000b \nPrüfzeugnis-Nr.:\n \n. . . . . . . . . . . . . . . . . . . . . . . . . . . .\n(vom Bieter einzutragen)\n'.........' \u000b \n3. Umweltverträglichkeitsprüfung\n    nach RAL-GZ 943-3 Abs. 3-2.5\n \nName Prüfinstitut:\n \n. . . . . . . . . . . . . . . . . . . . . . . . . . . .\n(vom Bieter einzutragen)\n'.........' \u000b \nDIN EN ISO/IEC 17025-Registriernummer:\n \n. . . . . . . . . . . . . . . . . . . . . . . . . . . .\n(vom Bieter einzutragen)\n'.........' \u000b \nAusstellungsdatum:\n \n. . . . . . . . . . . . . . . . . . . . . . . . . . . .\n(vom Bieter einzutragen)\n'.........' \u000b \nPrüfzeugnis-Nr.:\n \n. . . . . . . . . . . . . . . . . . . . . . . . . . . .\n(vom Bieter einzutragen)\n'.........' \u000b \n4. Gütenachweis\n    gemäß RAL-GZ 943/3 oder gleichwertig\n \nName Prüfinstitut:\n \n. . . . . . . . . . . . . . . . . . . . . . . . . . . .\n(vom Bieter einzutragen)\n'.........' \u000b \nDIN EN ISO/IEC 17025-Registriernummer:\n \n. . . . . . . . . . . . . . . . . . . . . . . . . . . .\n(vom Bieter einzutragen)\n'.........' \u000b \nAusstellungsdatum:\n \n. . . . . . . . . . . . . . . . . . . . . . . . . . . .\n(vom Bieter einzutragen)\n'.........' \u000b \nGütenachweis Nr.:\n \n. . . . . . . . . . . . . . . . . . . . . . . . . . . .\n(vom Bieter einzutragen)\n'.........' \u000b \nGütenachweis gültig bis:\n \n. . . . . . . . . . . . . . . . . . . . . . . . . . . .\n(vom Bieter einzutragen)\n'.........' ",9172,"m2",null,0,20,null,null," \n",null,null," \n",null,null," \n",null,null," \n",null,null," \n",null,null," \n",null,null," \n",null,null," \n",null,null," \n",null,null," \n",null,null," \n",null,null," \n",null,null," \n",null,null," \n",null,null," \n",null,null," \n",null,null," \n",null,null," \n",null,null," \n",null,null," "]
["01.04.0007"," ","Einmessen einer 400 m-Rundlaufbahn","Einmessen einer 400 m-Rundlaufbahn, entsprechend der ALB-Bestimmungen und sichern der Radienmittelpunkte durch einen vom DLV anerkannten Vermessungsingenieur.",1,"psch",null,0,0]
["01.04.0008"," ","Laufbahnmarkierung entspr. ALB des DLV der","Laufbahnmarkierung entspr. ALB des DLV der Kampfbahn Typ A 8/8, wie im Bestand vorhanden,\n8 Kurzstreckenlaufbahnen, 8 Rundlaufbahnen, 3 Speeranlauf, 6 Anlaufbahnen für Weit- und Dreisprung, 1 Anlaufbahn für Stabhochsprung mit vorgeschriebenen Farben und Symbolen durch PUR-Aufspritzung herstellen, jedoch ohne Beschilderungen auf den Einfassungen, einschl. Vermessung durch einen vom DLV zugelassenen Vermessungsingenieur.",1,"psch",null,0,0]
["01.04.0009"," ","Vorh. Beschilderung lösen und wieder verschrauben","Vorh. Beschilderung der Wechsel etc. aufgrund von Regeländerung fachgerecht lösen und nach Einmessung der Laufbahn an korrekter Stelle, wie im Bestand,\nauf Kantensteinen der Randeinfassung verschrauben.",20,"St",null,0,0]
["01.04.0010"," ","Bahnzeugnis","Ausstellung eines Bahnzeugnisses in dreifacher Ausfertigung für die jeweiligen Landesverbände, für den DLV und für den Bauherrn. Ermittlung der Baulänge und der theoretischen Lauflinie, sowie Ermittlung der Hindernisstrecke ist Inhalt dieser Position und muss im Bahnzeugnis erfasst durch einen vom DLV zugelassenen Vermesser sein.",1,"psch",null,0,0]
["02","1","Nachweisarbeiten",null,null,null,null,{"$f":"SUM(H53:H54)","v":0}]
["02.01","2","Stundenlohnarbeiten","Stundenlohnarbeiten",null,null,null,{"$f":"SUM(H53:H54)","v":0}]
["02.01.0001"," ","Facharbeiterstunden","Facharbeiterstunden für Sonderarbeiten nach Angabe durch die Bauleitung.",20,"h",null,{"$f":"ROUND(E53*G53,2)","v":0},0]
["02.01.0002"," ","Arbeiter","Arbeiter \nArbeiter für Sonderarbeiten wie vor.",20,"h",null,{"$f":"ROUND(E54*G54,2)","v":0},0]